[Event "Titled Tuesday Blitz June 27 Late 2023"]
[White "Deng, Henry"]
[Black "Nazari, Arad"]
[WhiteFideId "30965454"]
[BlackFideId "12577324"]
[WhiteElo "2508"]
[BlackElo "2742"]
[Result "0-1"]
[Round "3"]
[TimeControl "180+2"]
[Date "2023.06.27"]
[WhiteClock "0:00:13"]
[BlackClock "0:01:18"]
[Board "68"]

1. e4 {[%clk 0:03:00]}  c5 {[%clk 0:02:59]} 2. Nc3 {[%clk 0:02:58]}  d6 {[%clk 0:02:58]} 3. Nf3 {[%clk 0:02:56]}  Nf6 {[%clk 0:02:55]} 4. d4 {[%clk 0:02:56]}  cxd4 {[%clk 0:02:56]} 5. Nxd4 {[%clk 0:02:57]}  a6 {[%clk 0:02:56]} 6. Be2 {[%clk 0:02:56]}  e5 {[%clk 0:02:56]} 7. Nb3 {[%clk 0:02:55]}  Be7 {[%clk 0:02:57]} 8. O-O {[%clk 0:02:55]}  O-O {[%clk 0:02:58]} 9. Qd3 {[%clk 0:02:56]}  Nc6 {[%clk 0:02:58]} 10. Nd5 {[%clk 0:02:55]}  Nxd5 {[%clk 0:02:53]} 11. exd5 {[%clk 0:02:55]}  Nb4 {[%clk 0:02:53]} 12. Qc4 {[%clk 0:02:51]}  a5 {[%clk 0:02:51]} 13. a3 {[%clk 0:02:48]}  b5 {[%clk 0:02:45]} 14. Qc3 {[%clk 0:02:11]}  Nxd5 {[%clk 0:02:43]} 15. Qc6 {[%clk 0:02:09]}  Be6 {[%clk 0:02:32]} 16. Qxb5 {[%clk 0:02:06]}  Qc7 {[%clk 0:02:23]} 17. Qd3 {[%clk 0:01:53]}  a4 {[%clk 0:02:19]} 18. Nd2 {[%clk 0:01:43]}  Nf4 {[%clk 0:02:20]} 19. Qe3 {[%clk 0:01:33]}  Nxe2+ {[%clk 0:02:20]} 20. Qxe2 {[%clk 0:01:33]}  Qxc2 {[%clk 0:02:21]} 21. Qe3 {[%clk 0:01:29]}  f5 {[%clk 0:02:08]} 22. f4 {[%clk 0:01:26]}  e4 {[%clk 0:02:03]} 23. Kh1 {[%clk 0:01:14]}  d5 {[%clk 0:02:02]} 24. Nf3 {[%clk 0:01:13]}  Bc5 {[%clk 0:01:53]} 25. Qe1 {[%clk 0:01:12]}  d4 {[%clk 0:01:37]} 26. Ng5 {[%clk 0:01:06]}  Bc4 {[%clk 0:01:34]} 27. Rf2 {[%clk 0:01:06]}  Qb3 {[%clk 0:01:33]} 28. Bd2 {[%clk 0:00:30]}  h6 {[%clk 0:01:24]} 29. Nxe4 {[%clk 0:00:29]}  fxe4 {[%clk 0:01:23]} 30. Qxe4 {[%clk 0:00:29]}  Rae8 {[%clk 0:01:22]} 31. Qc6 {[%clk 0:00:29]}  Rc8 {[%clk 0:01:21]} 32. Qd7 {[%clk 0:00:13]}  Be6 {[%clk 0:01:18]} 0-1


[Site "https://www.chess.com"]

[Event "Titled Tuesday Blitz June 27 Late 2023"]
[White "Matinian, Nikita"]
[Black "Toncheva, Nadya"]
[WhiteFideId "24129100"]
[BlackFideId "2924056"]
[WhiteElo "2735"]
[BlackElo "2506"]
[Result "1-0"]
[Round "3"]
[TimeControl "180+2"]
[Date "2023.06.27"]
[WhiteClock "0:01:57"]
[BlackClock "0:00:31"]
[Board "69"]

1. e4 {[%clk 0:03:00]}  c5 {[%clk 0:03:00]} 2. Nf3 {[%clk 0:03:00]}  Nc6 {[%clk 0:03:00]} 3. Bb5 {[%clk 0:03:00]}  e6 {[%clk 0:03:00]} 4. c3 {[%clk 0:03:00]}  Nge7 {[%clk 0:03:00]} 5. d4 {[%clk 0:03:00]}  cxd4 {[%clk 0:02:52]} 6. cxd4 {[%clk 0:03:01]}  d5 {[%clk 0:02:52]} 7. e5 {[%clk 0:03:00]}  Bd7 {[%clk 0:02:47]} 8. Nc3 {[%clk 0:02:57]}  Nf5 {[%clk 0:02:46]} 9. O-O {[%clk 0:02:50]}  Bb4 {[%clk 0:02:45]} 10. Bd3 {[%clk 0:02:43]}  Nfxd4 {[%clk 0:02:25]} 11. Nxd4 {[%clk 0:02:44]}  Nxd4 {[%clk 0:02:25]} 12. Qg4 {[%clk 0:02:44]}  Bxc3 {[%clk 0:02:25]} 13. bxc3 {[%clk 0:02:43]}  Nc6 {[%clk 0:01:31]} 14. Qxg7 {[%clk 0:02:41]}  Rf8 {[%clk 0:01:30]} 15. Bh6 {[%clk 0:02:17]}  Qe7 {[%clk 0:01:29]} 16. Qxf8+ {[%clk 0:02:17]}  Qxf8 {[%clk 0:01:30]} 17. Bxf8 {[%clk 0:02:18]}  Kxf8 {[%clk 0:01:30]} 18. f4 {[%clk 0:02:18]}  Rc8 {[%clk 0:01:29]} 19. Bxh7 {[%clk 0:02:18]}  Na5 {[%clk 0:01:25]} 20. Rf3 {[%clk 0:02:15]}  Kg7 {[%clk 0:01:21]} 21. Bc2 {[%clk 0:02:09]}  d4 {[%clk 0:01:20]} 22. Rd1 {[%clk 0:02:08]}  Nc6 {[%clk 0:01:05]} 23. cxd4 {[%clk 0:02:05]}  Nb4 {[%clk 0:01:04]} 24. Bb1 {[%clk 0:02:04]}  Ba4 {[%clk 0:01:02]} 25. Rdf1 {[%clk 0:02:01]}  Nd5 {[%clk 0:00:55]} 26. f5 {[%clk 0:02:00]}  exf5 {[%clk 0:00:46]} 27. Bxf5 {[%clk 0:02:01]}  Rc7 {[%clk 0:00:44]} 28. Rg3+ {[%clk 0:02:00]}  Kf8 {[%clk 0:00:43]} 29. e6 {[%clk 0:02:01]}  Nc3 {[%clk 0:00:31]} 30. Bd3 {[%clk 0:01:57]} 1-0


[Site "https://www.chess.com"]

[Event "Titled Tuesday Blitz June 27 Late 2023"]
[White "ArchibaldCerveza29"]
[Black "Pakleza, Zbigniew"]
[BlackFideId "1119290"]
[WhiteElo "2504"]
[BlackElo "2717"]
[Result "0-1"]
[Round "3"]
[TimeControl "180+2"]
[Date "2023.06.27"]
[WhiteClock "0:00:04"]
[BlackClock "0:00:04"]
[Board "70"]

1. e4 {[%clk 0:03:00]}  d6 {[%clk 0:03:00]} 2. d4 {[%clk 0:02:53]}  Nf6 {[%clk 0:03:00]} 3. Nc3 {[%clk 0:02:54]}  c6 {[%clk 0:03:00]} 4. a4 {[%clk 0:02:47]}  a5 {[%clk 0:03:00]} 5. g3 {[%clk 0:02:43]}  e5 {[%clk 0:02:56]} 6. Nge2 {[%clk 0:02:43]}  Nbd7 {[%clk 0:02:56]} 7. Bg2 {[%clk 0:02:43]}  Be7 {[%clk 0:02:55]} 8. O-O {[%clk 0:02:44]}  O-O {[%clk 0:02:55]} 9. h3 {[%clk 0:02:43]}  Re8 {[%clk 0:02:55]} 10. Kh2 {[%clk 0:02:43]}  Bf8 {[%clk 0:02:55]} 11. f4 {[%clk 0:02:31]}  exd4 {[%clk 0:02:33]} 12. Nxd4 {[%clk 0:02:32]}  Nc5 {[%clk 0:02:33]} 13. Re1 {[%clk 0:02:33]}  Qb6 {[%clk 0:02:30]} 14. Rb1 {[%clk 0:02:23]}  Bd7 {[%clk 0:02:27]} 15. g4 {[%clk 0:02:02]}  g6 {[%clk 0:02:15]} 16. g5 {[%clk 0:02:01]}  Nh5 {[%clk 0:02:14]} 17. Be3 {[%clk 0:01:53]}  Qc7 {[%clk 0:01:48]} 18. Qf3 {[%clk 0:01:34]}  Bg7 {[%clk 0:01:34]} 19. Rbd1 {[%clk 0:01:29]}  Rad8 {[%clk 0:01:33]} 20. Kh1 {[%clk 0:01:29]}  Bc8 {[%clk 0:01:32]} 21. Bg1 {[%clk 0:01:08]}  f6 {[%clk 0:01:16]} 22. gxf6 {[%clk 0:00:53]}  Nxf6 {[%clk 0:01:17]} 23. Qg3 {[%clk 0:00:42]}  Nh5 {[%clk 0:01:10]} 24. Qh2 {[%clk 0:00:41]}  Qf7 {[%clk 0:00:57]} 25. Rf1 {[%clk 0:00:40]}  Rf8 {[%clk 0:00:58]} 26. Be3 {[%clk 0:00:33]}  Qc4 {[%clk 0:00:52]} 27. Nde2 {[%clk 0:00:28]}  Qb4 {[%clk 0:00:45]} 28. Bd4 {[%clk 0:00:19]}  Qxb2 {[%clk 0:00:38]} 29. Bxg7 {[%clk 0:00:19]}  Kxg7 {[%clk 0:00:34]} 30. f5 {[%clk 0:00:20]}  Qxc2 {[%clk 0:00:20]} 31. Rxd6 {[%clk 0:00:19]}  Rde8 {[%clk 0:00:12]} 32. fxg6 {[%clk 0:00:17]}  Rxf1+ {[%clk 0:00:10]} 33. Bxf1 {[%clk 0:00:18]}  Nxe4 {[%clk 0:00:09]} 34. Nxe4 {[%clk 0:00:14]}  Qxe4+ {[%clk 0:00:10]} 35. Qg2 {[%clk 0:00:11]}  hxg6 {[%clk 0:00:07]} 36. Rd4 {[%clk 0:00:07]}  Qxg2+ {[%clk 0:00:06]} 37. Kxg2 {[%clk 0:00:08]}  Be6 {[%clk 0:00:04]} 38. Rd6 {[%clk 0:00:07]}  Bd5+ {[%clk 0:00:03]} 39. Kf2 {[%clk 0:00:07]}  Re7 {[%clk 0:00:03]} 40. Nd4 {[%clk 0:00:07]}  Nf6 {[%clk 0:00:03]} 41. Bd3 {[%clk 0:00:06]}  Ne4+ {[%clk 0:00:03]} 42. Bxe4 {[%clk 0:00:07]}  Rxe4 {[%clk 0:00:04]} 43. Nf3 {[%clk 0:00:07]}  Rxa4 {[%clk 0:00:04]} 44. Rd7+ {[%clk 0:00:07]}  Kf6 {[%clk 0:00:05]} 45. Rxb7 {[%clk 0:00:08]}  Ra2+ {[%clk 0:00:04]} 46. Kg3 {[%clk 0:00:03]}  Ra3 {[%clk 0:00:05]} 47. Kg4 {[%clk 0:00:04]}  Bxf3+ {[%clk 0:00:04]} 48. Kf4 {[%clk 0:00:05]}  g5+ {[%clk 0:00:04]} 49. Kg3 {[%clk 0:00:04]}  Bh5+ {[%clk 0:00:04]} 50. Kf2 {[%clk 0:00:04]}  Ra2+ {[%clk 0:00:04]} 51. Ke3 {[%clk 0:00:04]}  Bf7 {[%clk 0:00:04]} 52. Kd3 {[%clk 0:00:05]}  Bd5 {[%clk 0:00:04]} 53. h4 {[%clk 0:00:05]}  gxh4 {[%clk 0:00:04]} 54. Rh7 {[%clk 0:00:05]}  h3 {[%clk 0:00:04]} 55. Kd4 {[%clk 0:00:05]}  h2 {[%clk 0:00:04]} 56. Kc5 {[%clk 0:00:05]}  h1=Q {[%clk 0:00:04]} 57. Rc7 {[%clk 0:00:03]}  Qg1+ {[%clk 0:00:04]} 58. Kd6 {[%clk 0:00:04]}  Qg3+ {[%clk 0:00:04]} 59. Kd7 {[%clk 0:00:04]}  Qxc7+ {[%clk 0:00:04]} 60. Ke8 {[%clk 0:00:04]}  Qe7# {[%clk 0:00:04]} 0-1


[Site "https://www.chess.com"]

[Event "Titled Tuesday Blitz June 27 Late 2023"]
[White "Mathieu, Phileas"]
[Black "Mihajlov, Sebastian"]
[WhiteFideId "36048410"]
[BlackFideId "1512110"]
[WhiteElo "2504"]
[BlackElo "2698"]
[Result "0-1"]
[Round "3"]
[TimeControl "180+2"]
[Date "2023.06.27"]
[WhiteClock "0:00:13"]
[BlackClock "0:01:04"]
[Board "71"]

1. e4 {[%clk 0:03:00]}  e6 {[%clk 0:02:55]} 2. d3 {[%clk 0:03:00]}  d5 {[%clk 0:02:56]} 3. Qe2 {[%clk 0:03:01]}  Nc6 {[%clk 0:02:52]} 4. Nf3 {[%clk 0:03:00]}  e5 {[%clk 0:02:48]} 5. exd5 {[%clk 0:02:48]}  Qxd5 {[%clk 0:02:49]} 6. Nc3 {[%clk 0:02:48]}  Bb4 {[%clk 0:02:48]} 7. Bd2 {[%clk 0:02:46]}  Bxc3 {[%clk 0:02:47]} 8. Bxc3 {[%clk 0:02:47]}  Bg4 {[%clk 0:02:46]} 9. Qe4 {[%clk 0:02:44]}  Bxf3 {[%clk 0:02:44]} 10. gxf3 {[%clk 0:02:41]}  Nf6 {[%clk 0:02:44]} 11. Qh4 {[%clk 0:02:32]}  O-O-O {[%clk 0:02:41]} 12. O-O-O {[%clk 0:02:29]}  Qxa2 {[%clk 0:02:41]} 13. Rg1 {[%clk 0:02:25]}  Nd4 {[%clk 0:02:33]} 14. Qh3+ {[%clk 0:02:17]}  Kb8 {[%clk 0:02:32]} 15. Rxg7 {[%clk 0:02:18]}  Nd5 {[%clk 0:02:31]} 16. Bxd4 {[%clk 0:01:17]}  exd4 {[%clk 0:02:30]} 17. Rg4 {[%clk 0:01:03]}  Qa1+ {[%clk 0:02:24]} 18. Kd2 {[%clk 0:01:03]}  Qxb2 {[%clk 0:02:25]} 19. Rc1 {[%clk 0:01:02]}  f5 {[%clk 0:02:12]} 20. Rg1 {[%clk 0:00:53]}  Rhe8 {[%clk 0:02:10]} 21. Bg2 {[%clk 0:00:47]}  Re2+ {[%clk 0:01:42]} 22. Kxe2 {[%clk 0:00:42]}  Nf4+ {[%clk 0:01:42]} 23. Kd1 {[%clk 0:00:40]}  Nxh3 {[%clk 0:01:41]} 24. Bxh3 {[%clk 0:00:41]}  a5 {[%clk 0:01:38]} 25. Bxf5 {[%clk 0:00:37]}  a4 {[%clk 0:01:34]} 26. Bxh7 {[%clk 0:00:27]}  a3 {[%clk 0:01:34]} 27. Be4 {[%clk 0:00:28]}  a2 {[%clk 0:01:33]} 28. Ke2 {[%clk 0:00:28]}  c6 {[%clk 0:01:29]} 29. f4 {[%clk 0:00:27]}  Rh8 {[%clk 0:01:20]} 30. f5 {[%clk 0:00:26]}  Rxh2 {[%clk 0:01:19]} 31. f6 {[%clk 0:00:26]}  Rh6 {[%clk 0:01:17]} 32. f7 {[%clk 0:00:20]}  Rf6 {[%clk 0:01:17]} 33. Bg6 {[%clk 0:00:16]}  Kc7 {[%clk 0:01:11]} 34. Bh5 {[%clk 0:00:16]}  a1=Q {[%clk 0:01:01]} 35. Rxa1 {[%clk 0:00:13]}  Qxc2+ {[%clk 0:01:02]} 36. Ke1 {[%clk 0:00:13]}  Qxf2+ {[%clk 0:01:02]} 37. Kd1 {[%clk 0:00:14]}  Qxg1+ {[%clk 0:01:03]} 38. Kc2 {[%clk 0:00:13]}  Qxa1 {[%clk 0:01:04]} 0-1


[Site "https://www.chess.com"]

[Event "Titled Tuesday Blitz June 27 Late 2023"]
[White "Goncalves, Davi Sulzbacher"]
[Black "Vetoshko, Volodymyr"]
[WhiteFideId "2154510"]
[BlackFideId "14122480"]
[WhiteElo "2498"]
[BlackElo "2672"]
[Result "0-1"]
[Round "3"]
[TimeControl "180+2"]
[Date "2023.06.27"]
[WhiteClock "0:00:00"]
[BlackClock "0:00:03"]
[Board "74"]

1. Nf3 {[%clk 0:03:00]}  Nf6 {[%clk 0:02:59]} 2. d4 {[%clk 0:03:00]}  d5 {[%clk 0:02:53]} 3. Bg5 {[%clk 0:02:59]}  Ne4 {[%clk 0:02:50]} 4. Bh4 {[%clk 0:02:57]}  c5 {[%clk 0:02:48]} 5. e3 {[%clk 0:02:55]}  Qb6 {[%clk 0:02:42]} 6. Nc3 {[%clk 0:02:49]}  Nxc3 {[%clk 0:02:17]} 7. bxc3 {[%clk 0:02:50]}  Nc6 {[%clk 0:02:17]} 8. Be2 {[%clk 0:02:38]}  e6 {[%clk 0:01:31]} 9. O-O {[%clk 0:02:36]}  c4 {[%clk 0:01:21]} 10. e4 {[%clk 0:02:35]}  Be7 {[%clk 0:01:13]} 11. e5 {[%clk 0:02:21]}  O-O {[%clk 0:01:03]} 12. Qd2 {[%clk 0:02:14]}  Qd8 {[%clk 0:01:00]} 13. Bxe7 {[%clk 0:02:11]}  Qxe7 {[%clk 0:01:01]} 14. a4 {[%clk 0:01:50]}  Bd7 {[%clk 0:00:58]} 15. a5 {[%clk 0:01:41]}  Qd8 {[%clk 0:00:55]} 16. Ng5 {[%clk 0:01:27]}  h6 {[%clk 0:00:34]} 17. Nh3 {[%clk 0:01:26]}  Nxa5 {[%clk 0:00:34]} 18. f4 {[%clk 0:01:26]}  Nc6 {[%clk 0:00:33]} 19. Rf3 {[%clk 0:01:04]}  f5 {[%clk 0:00:32]} 20. exf6 {[%clk 0:00:31]}  Qxf6 {[%clk 0:00:32]} 21. Nf2 {[%clk 0:00:16]}  a5 {[%clk 0:00:28]} 22. Ng4 {[%clk 0:00:13]}  Qf5 {[%clk 0:00:24]} 23. Rg3 {[%clk 0:00:14]}  Qxf4 {[%clk 0:00:20]} 24. Nxh6+ {[%clk 0:00:11]}  Kh7 {[%clk 0:00:18]} 25. Qxf4 {[%clk 0:00:04]}  Rxf4 {[%clk 0:00:19]} 26. Ng4 {[%clk 0:00:05]}  a4 {[%clk 0:00:16]} 27. h4 {[%clk 0:00:03]}  a3 {[%clk 0:00:15]} 28. h5 {[%clk 0:00:03]}  a2 {[%clk 0:00:14]} 29. h6 {[%clk 0:00:02]}  gxh6 {[%clk 0:00:13]} 30. Ne5 {[%clk 0:00:03]}  Nxe5 {[%clk 0:00:10]} 31. dxe5 {[%clk 0:00:03]}  Ra3 {[%clk 0:00:06]} 32. Bh5 {[%clk 0:00:02]}  Kh8 {[%clk 0:00:04]} 33. Kh2 {[%clk 0:00:02]}  Rf5 {[%clk 0:00:04]} 34. Bg6 {[%clk 0:00:02]}  Rxe5 {[%clk 0:00:04]} 35. Rf1 {[%clk 0:00:01]}  Rf5 {[%clk 0:00:04]} 36. Bxf5 {[%clk 0:00:01]}  exf5 {[%clk 0:00:04]} 37. Re1 {[%clk 0:00:01]}  a1=Q {[%clk 0:00:04]} 38. Re7 {[%clk 0:00:01]}  Qxc3 {[%clk 0:00:03]} 39. Rxd7 {[%clk 0:00:00]}  Qxg3+ {[%clk 0:00:03]} 0-1


[Site "https://www.chess.com"]

[Event "Titled Tuesday Blitz June 27 Late 2023"]
[White "Veiga, Jose Francisco R P Neves"]
[Black "Womacka, Mathias"]
[WhiteFideId "1930087"]
[BlackFideId "4611390"]
[WhiteElo "2671"]
[BlackElo "2497"]
[Result "1/2-1/2"]
[Round "3"]
[TimeControl "180+2"]
[Date "2023.06.27"]
[WhiteClock "0:01:29"]
[BlackClock "0:00:14"]
[Board "75"]

1. c4 {[%clk 0:03:00]}  c5 {[%clk 0:02:59]} 2. Nc3 {[%clk 0:02:59]}  Nf6 {[%clk 0:02:58]} 3. g3 {[%clk 0:02:59]}  d5 {[%clk 0:02:57]} 4. cxd5 {[%clk 0:02:58]}  Nxd5 {[%clk 0:02:57]} 5. Bg2 {[%clk 0:02:59]}  Nc7 {[%clk 0:02:58]} 6. Nf3 {[%clk 0:02:59]}  Nc6 {[%clk 0:02:57]} 7. O-O {[%clk 0:03:00]}  e5 {[%clk 0:02:56]} 8. d3 {[%clk 0:02:59]}  Be7 {[%clk 0:02:56]} 9. a3 {[%clk 0:02:58]}  O-O {[%clk 0:02:55]} 10. Be3 {[%clk 0:02:57]}  Ne6 {[%clk 0:02:52]} 11. Rc1 {[%clk 0:02:55]}  Bd7 {[%clk 0:02:50]} 12. Ne4 {[%clk 0:02:46]}  b6 {[%clk 0:02:46]} 13. h4 {[%clk 0:02:39]}  h6 {[%clk 0:02:40]} 14. Qb3 {[%clk 0:02:35]}  Kh8 {[%clk 0:02:34]} 15. h5 {[%clk 0:02:30]}  f5 {[%clk 0:02:27]} 16. Nc3 {[%clk 0:02:28]}  f4 {[%clk 0:02:27]} 17. Bd2 {[%clk 0:02:27]}  Ned4 {[%clk 0:02:26]} 18. Qd5 {[%clk 0:02:22]}  Bg4 {[%clk 0:02:12]} 19. Nxe5 {[%clk 0:02:19]}  Nxe5 {[%clk 0:02:07]} 20. Qxe5 {[%clk 0:02:20]}  Bd6 {[%clk 0:01:56]} 21. Qd5 {[%clk 0:02:20]}  Rc8 {[%clk 0:01:34]} 22. Bxf4 {[%clk 0:02:05]}  Bxf4 {[%clk 0:01:22]} 23. gxf4 {[%clk 0:02:05]}  Nxe2+ {[%clk 0:01:19]} 24. Nxe2 {[%clk 0:02:05]}  Bxe2 {[%clk 0:01:19]} 25. Rfe1 {[%clk 0:02:05]}  Bxd3 {[%clk 0:00:56]} 26. Rcd1 {[%clk 0:02:02]}  c4 {[%clk 0:00:55]} 27. Qxd8 {[%clk 0:01:46]}  Rcxd8 {[%clk 0:00:56]} 28. Re7 {[%clk 0:01:46]}  Rxf4 {[%clk 0:00:54]} 29. Rxa7 {[%clk 0:01:45]}  Rdf8 {[%clk 0:00:51]} 30. Rd2 {[%clk 0:01:44]}  R4f5 {[%clk 0:00:46]} 31. Rb7 {[%clk 0:01:41]}  Rg5 {[%clk 0:00:41]} 32. Rxb6 {[%clk 0:01:31]}  Be4 {[%clk 0:00:38]} 33. f3 {[%clk 0:01:31]}  Bxf3 {[%clk 0:00:31]} 34. Rg6 {[%clk 0:01:27]}  Bxh5 {[%clk 0:00:27]} 35. Rxg5 {[%clk 0:01:26]}  hxg5 {[%clk 0:00:28]} 36. Rd5 {[%clk 0:01:23]}  Bf3 {[%clk 0:00:24]} 37. Rxg5 {[%clk 0:01:21]}  Bxg2 {[%clk 0:00:22]} 38. Rxg2 {[%clk 0:01:22]}  Rf3 {[%clk 0:00:20]} 39. Rc2 {[%clk 0:01:22]}  Rb3 {[%clk 0:00:19]} 40. Kf2 {[%clk 0:01:21]}  c3 {[%clk 0:00:19]} 41. bxc3 {[%clk 0:01:20]}  Rxa3 {[%clk 0:00:19]} 42. Ke3 {[%clk 0:01:20]}  Kg8 {[%clk 0:00:19]} 43. Kd4 {[%clk 0:01:21]}  Kf7 {[%clk 0:00:19]} 44. c4 {[%clk 0:01:21]}  Ke6 {[%clk 0:00:18]} 45. Rg2 {[%clk 0:01:22]}  Ra1 {[%clk 0:00:15]} 46. Rxg7 {[%clk 0:01:21]}  Kd6 {[%clk 0:00:15]} 47. Rg6+ {[%clk 0:01:21]}  Kc7 {[%clk 0:00:16]} 48. Kc5 {[%clk 0:01:21]}  Ra5+ {[%clk 0:00:15]} 49. Kb4 {[%clk 0:01:22]}  Rh5 {[%clk 0:00:15]} 50. c5 {[%clk 0:01:22]}  Rh1 {[%clk 0:00:14]} 51. Kb5 {[%clk 0:01:23]}  Rb1+ {[%clk 0:00:13]} 52. Kc4 {[%clk 0:01:23]}  Rc1+ {[%clk 0:00:13]} 53. Kd5 {[%clk 0:01:23]}  Rd1+ {[%clk 0:00:14]} 54. Ke5 {[%clk 0:01:24]}  Re1+ {[%clk 0:00:14]} 55. Kd4 {[%clk 0:01:25]}  Rd1+ {[%clk 0:00:14]} 56. Kc3 {[%clk 0:01:26]}  Rc1+ {[%clk 0:00:14]} 57. Kb4 {[%clk 0:01:27]}  Rb1+ {[%clk 0:00:15]} 58. Ka5 {[%clk 0:01:28]}  Ra1+ {[%clk 0:00:14]} 59. Kb5 {[%clk 0:01:28]}  Rb1+ {[%clk 0:00:15]} 60. Ka4 {[%clk 0:01:29]}  Ra1+ {[%clk 0:00:15]} 61. Kb3 {[%clk 0:01:30]}  Rb1+ {[%clk 0:00:15]} 62. Kc2 {[%clk 0:01:30]}  Rb5 {[%clk 0:00:14]} 63. Kd3 {[%clk 0:01:30]}  Rxc5 {[%clk 0:00:14]} 64. Kd4 {[%clk 0:01:28]}  Rc6 {[%clk 0:00:13]} 65. Rxc6+ {[%clk 0:01:29]}  Kxc6 {[%clk 0:00:14]} 1/2-1/2


[Site "https://www.chess.com"]

[Event "Titled Tuesday Blitz June 27 Late 2023"]
[White "Goryachkina, Aleksandra"]
[Black "Koutsin, Sergey"]
[WhiteFideId "4147103"]
[BlackFideId "14101483"]
[WhiteElo "2670"]
[BlackElo "2495"]
[Result "0-1"]
[Round "3"]
[TimeControl "180+2"]
[Date "2023.06.27"]
[WhiteClock "0:00:01"]
[BlackClock "0:00:17"]
[Board "77"]

1. e4 {[%clk 0:03:00]}  e6 {[%clk 0:03:00]} 2. d4 {[%clk 0:02:59]}  d5 {[%clk 0:03:00]} 3. Nd2 {[%clk 0:03:00]}  a6 {[%clk 0:02:57]} 4. Ngf3 {[%clk 0:02:58]}  c5 {[%clk 0:02:56]} 5. exd5 {[%clk 0:02:52]}  exd5 {[%clk 0:02:56]} 6. dxc5 {[%clk 0:02:51]}  Bxc5 {[%clk 0:02:56]} 7. Bd3 {[%clk 0:02:50]}  Nf6 {[%clk 0:02:51]} 8. O-O {[%clk 0:02:50]}  O-O {[%clk 0:02:51]} 9. Nb3 {[%clk 0:02:50]}  Bb6 {[%clk 0:02:50]} 10. Bg5 {[%clk 0:02:47]}  Nc6 {[%clk 0:02:36]} 11. c3 {[%clk 0:02:39]}  Bg4 {[%clk 0:02:31]} 12. h3 {[%clk 0:02:38]}  Bh5 {[%clk 0:02:29]} 13. Be2 {[%clk 0:02:04]}  Re8 {[%clk 0:02:25]} 14. Nfd4 {[%clk 0:02:02]}  Bxe2 {[%clk 0:02:11]} 15. Nxe2 {[%clk 0:02:02]}  h6 {[%clk 0:02:12]} 16. Bh4 {[%clk 0:01:38]}  Qd6 {[%clk 0:02:07]} 17. Bg3 {[%clk 0:01:33]}  Qd7 {[%clk 0:02:06]} 18. Ned4 {[%clk 0:01:30]}  Ne4 {[%clk 0:02:01]} 19. Qd3 {[%clk 0:01:28]}  Nxg3 {[%clk 0:01:54]} 20. fxg3 {[%clk 0:01:18]}  Nxd4 {[%clk 0:01:53]} 21. Nxd4 {[%clk 0:01:17]}  Re4 {[%clk 0:01:49]} 22. Kh2 {[%clk 0:01:08]}  Bxd4 {[%clk 0:01:48]} 23. cxd4 {[%clk 0:01:08]}  Rae8 {[%clk 0:01:48]} 24. Rac1 {[%clk 0:01:05]}  Qd6 {[%clk 0:01:24]} 25. Qf3 {[%clk 0:00:48]}  f6 {[%clk 0:01:16]} 26. Qh5 {[%clk 0:00:47]}  Kh7 {[%clk 0:00:54]} 27. Qf5+ {[%clk 0:00:44]}  Kg8 {[%clk 0:00:54]} 28. Qg6 {[%clk 0:00:43]}  Re2 {[%clk 0:00:38]} 29. Rc3 {[%clk 0:00:32]}  Qd7 {[%clk 0:00:37]} 30. Rfc1 {[%clk 0:00:19]}  Qf7 {[%clk 0:00:35]} 31. Qxf7+ {[%clk 0:00:16]}  Kxf7 {[%clk 0:00:35]} 32. Rc7+ {[%clk 0:00:16]}  R8e7 {[%clk 0:00:35]} 33. Rxe7+ {[%clk 0:00:16]}  Rxe7 {[%clk 0:00:36]} 34. Rc2 {[%clk 0:00:16]}  Re4 {[%clk 0:00:34]} 35. Rc7+ {[%clk 0:00:16]}  Re7 {[%clk 0:00:34]} 36. Rc2 {[%clk 0:00:16]}  Ke6 {[%clk 0:00:31]} 37. g4 {[%clk 0:00:14]}  Kd6 {[%clk 0:00:31]} 38. Kg3 {[%clk 0:00:14]}  Re3+ {[%clk 0:00:30]} 39. Kf4 {[%clk 0:00:06]}  Rd3 {[%clk 0:00:30]} 40. Kf5 {[%clk 0:00:06]}  Rxd4 {[%clk 0:00:30]} 41. Kg6 {[%clk 0:00:07]}  Rf4 {[%clk 0:00:23]} 42. Kxg7 {[%clk 0:00:07]}  d4 {[%clk 0:00:23]} 43. Kxh6 {[%clk 0:00:07]}  Kd5 {[%clk 0:00:22]} 44. g5 {[%clk 0:00:05]}  fxg5 {[%clk 0:00:18]} 45. Kxg5 {[%clk 0:00:06]}  Rf1 {[%clk 0:00:18]} 46. h4 {[%clk 0:00:06]}  d3 {[%clk 0:00:18]} 47. Rc8 {[%clk 0:00:05]}  Ke4 {[%clk 0:00:18]} 48. Rd8 {[%clk 0:00:04]}  Ke3 {[%clk 0:00:16]} 49. h5 {[%clk 0:00:04]}  d2 {[%clk 0:00:16]} 50. h6 {[%clk 0:00:04]}  Rf8 {[%clk 0:00:15]} 51. Rxd2 {[%clk 0:00:02]}  Kxd2 {[%clk 0:00:14]} 52. g4 {[%clk 0:00:03]}  Ke3 {[%clk 0:00:13]} 53. Kg6 {[%clk 0:00:03]}  Kf4 {[%clk 0:00:13]} 54. g5 {[%clk 0:00:03]}  Rf5 {[%clk 0:00:13]} 55. h7 {[%clk 0:00:03]}  Rxg5+ {[%clk 0:00:14]} 56. Kh6 {[%clk 0:00:03]}  Rg2 {[%clk 0:00:13]} 57. h8=Q {[%clk 0:00:03]}  Rh2+ {[%clk 0:00:14]} 58. Kg7 {[%clk 0:00:04]}  Rxh8 {[%clk 0:00:14]} 59. Kxh8 {[%clk 0:00:04]}  Ke4 {[%clk 0:00:15]} 60. Kg7 {[%clk 0:00:05]}  Kd3 {[%clk 0:00:16]} 61. Kf6 {[%clk 0:00:05]}  Kc2 {[%clk 0:00:16]} 62. Ke6 {[%clk 0:00:01]}  Kxb2 {[%clk 0:00:17]} 0-1


[Site "https://www.chess.com"]